fUSD/lending_fUSD_20240412
["ID","MTS","AMOUNT","RATE_DAILY","PERIOD"]
[322264027,1712917845215,-150.0,0.000419,7]
[322264028,1712917845223,-641.579035,0.00042,2]
[322264029,1712917845233,-206.0,0.00042,2]
[322264030,1712917845242,-301.66,0.00042025,2]
[322264031,1712917845250,-150.0,0.00042113,2]
[322264032,1712917845259,-150.0,0.00042113,2]
[322264033,1712917845268,-150.0,0.00042113,2]
[322264034,1712917845278,-900.0,0.00042346,30]
[322264035,1712917845287,-514.646427,0.00042346,30]
[322264036,1712917845297,-996.62,0.0004236,2]
[322264037,1712917845309,-150.0,0.00042394,2]
[322264038,1712917845319,-150.0,0.000424,7]
[322264039,1712917845329,-1000.0,0.00042465,2]
[322264040,1712917845339,-719.0,0.00042466,7]
[322264041,1712917845348,-514.04,0.000425,7]
[322264042,1712917845357,-1000.0,0.000426,7]
[322264043,1712917845367,-301.66,0.00042725,2]
[322264044,1712917845377,-638.19,0.000428,7]
[322264045,1712917845386,-962.68936662,0.0004289,10]
[322264046,1712917845396,-900.0,0.00042894,30]
[322264047,1712917845406,-150.0,0.00042898,2]
[322264048,1712917845415,-150.0,0.000429,7]
[322264049,1712917845425,-150.0,0.00043011,2]
[322264050,1712917845435,-150.0,0.00043011,2]
[322264051,1712917845446,-150.0,0.00043034,2]
[322264052,1712917845456,-150.0,0.00043058,2]
[322264053,1712917845465,-150.0,0.00043059,2]
[322264054,1712917845474,-996.62,0.0004306,2]
[322264055,1712917845483,-150.0,0.00043063,2]
[322264056,1712917845492,-150.0,0.00043069,2]
[322264057,1712917845501,-150.0,0.00043073,2]
[322264058,1712917845510,-150.0,0.00043079,2]
[322264059,1712917845519,-150.0,0.00043094,2]
[322264060,1712917845529,-150.0,0.00043098,2]
[322264061,1712917845538,-150.0,0.00043109,2]
[322264062,1712917845549,-150.0,0.00043134,2]
[322264063,1712917845560,-150.0,0.00043135,2]
[322264064,1712917845569,-150.0,0.00043161,2]
[322264065,1712917845579,-150.0,0.00043167,2]
[322264066,1712917845590,-150.0,0.00043183,2]
[322264067,1712917845599,-150.0,0.00043197,2]
[322264068,1712917845608,-150.0,0.000432,2]
[322264069,1712917845617,-150.0,0.00043204,2]
[322264070,1712917845629,-150.0,0.00043217,2]
[322264071,1712917845640,-150.0,0.00043227,2]
[322264072,1712917845650,-150.0,0.00043227,2]
[322264073,1712917845747,-300.0,0.00043236,2]
[322264074,1712917845761,-150.0,0.00043249,2]
[322264075,1712917845771,-150.0,0.00043259,2]
[322264076,1712917845780,-150.0,0.00043259,2]
[322264077,1712917845790,-150.0,0.00043261,2]
[322264078,1712917845799,-586.32,0.00043269,2]
[322264079,1712917845809,-150.0,0.00043274,2]
[322264080,1712917845819,-150.0,0.00043282,2]
[322264081,1712917845828,-3285.59603356,0.00043294,2]
[322264082,1712917845837,-722.21837963,0.00043298,18]
[322264083,1712917845846,-150.0,0.00043303,2]
[322264084,1712917845856,-150.0,0.00043315,2]
[322264085,1712917845866,-150.0,0.0004332,2]
[322264086,1712917845875,-150.0,0.00043326,2]
[322264087,1712917845885,-1222.21128161,0.00043347,2]
[322264088,1712917845895,-150.0,0.0004335,2]
[322264089,1712917845904,-150.0,0.00043358,2]
[322264090,1712917845913,-300.0,0.00043358,2]
[322264091,1712917845922,-150.0,0.00043397,2]
[322264092,1712917845932,-150.0,0.000434,7]
[322264093,1712917845940,-150.0,0.00043402,2]
[322264094,1712917845950,-150.0,0.00043403,2]
[322264095,1712917845959,-150.0,0.00043427,2]
[322264096,1712917845968,-150.0,0.00043429,2]
[322264097,1712917845978,-150.0,0.00043441,2]
[322264098,1712917845989,-150.0,0.00043442,2]
[322264099,1712917845999,-900.0,0.00043442,30]
[322264100,1712917846009,-150.0,0.00043444,2]
[322264102,1712917846017,-1500.0,0.00043454,2]
[322264104,1712917846026,-150.0,0.00043461,2]
[322264106,1712917846036,-150.0,0.00043462,7]
[322264108,1712917846048,-150.0,0.00043463,2]
[322264110,1712917846057,-150.0,0.00043474,2]
[322264112,1712917846066,-150.0,0.00043477,2]
[322264114,1712917846076,-150.0,0.00043488,2]
[322264116,1712917846087,-150.0,0.00043489,2]
[322264118,1712917846097,-150.0,0.00043504,2]
[322264120,1712917846106,-739.43,0.00043507,15]
[322264122,1712917846115,-150.0,0.00043516,2]
[322264123,1712917846125,-150.0,0.00043522,2]
[322264124,1712917846134,-150.0,0.00043531,2]
[322264125,1712917846143,-150.0,0.00043538,2]
[322264126,1712917846151,-150.0,0.00043542,2]
[322264127,1712917846161,-150.0,0.00043542,2]
[322264128,1712917846170,-150.0,0.00043544,2]
[322264129,1712917846179,-176.26038041,0.00043549,2]
[322264130,1712917846190,-7391.97887061,0.0004356,2]
[322264131,1712917846199,-150.0,0.00043563,2]
[322264132,1712917846210,-150.0,0.00043583,2]
[322264133,1712917846219,-1222.21128161,0.00043597,2]
[322264134,1712917846228,-1098.59929156,0.00043598,2]
[322264135,1712917846238,-300.0,0.00043599,2]
[322264136,1712917846247,-638.19,0.000436,7]
[322264137,1712917846256,-514.04,0.000436,7]
[322264138,1712917846265,-150.0,0.00043606,2]
[322264139,1712917846274,-150.0,0.00043608,2]
[322264140,1712917846283,-150.0,0.00043615,2]
[322264141,1712917846293,-150.0,0.00043619,2]
[322264142,1712917846302,-150.0,0.00043624,2]
[322264143,1712917846311,-150.0,0.00043629,2]
[322264144,1712917846320,-150.0,0.00043633,2]
[322264145,1712917846330,-3285.59603356,0.00043634,2]
[322264146,1712917846341,-150.0,0.00043641,2]
[322264147,1712917846352,-150.0,0.00043655,2]
[322264148,1712917846362,-150.0,0.00043668,2]
[322264149,1712917846372,-150.0,0.00043672,2]
[322264150,1712917846382,-150.73387859,0.00043683,2]
[322264151,1712917846392,-150.0,0.00043684,2]
[322264152,1712917846402,-300.0,0.00043686,2]
[322264153,1712917846412,-150.0,0.00043686,2]
[322264154,1712917846422,-150.0,0.00043689,2]
[322264155,1712917846432,-150.0,0.00043697,2]
[322264156,1712917846442,-150.0,0.00043699,2]
[322264157,1712917846451,-150.0,0.00043702,2]
[322264158,1712917846460,-150.0,0.00043706,2]
[322264159,1712917846470,-150.0,0.00043716,2]
[322264160,1712917846480,-874.35861166,0.00043716,10]
[322264161,1712917846489,-155.80223276,0.00043716,10]
[322264162,1712917846499,-351.82655751,0.00043716,10]
[322264163,1712917846510,-2625.74496816,0.00043716,10]
[322264164,1712917846519,-150.0,0.00043717,2]
[322264165,1712917846529,-150.0,0.0004373,2]
[322264167,1712917846538,-150.0,0.00043741,2]
[322264169,1712917846547,-150.0,0.00043746,2]
[322264170,1712917846557,-150.0,0.00043749,2]
[322264171,1712917846567,-150.0,0.00043764,2]
[322264172,1712917846577,-150.0,0.00043768,2]
[322264173,1712917846586,-150.0,0.0004377,2]
[322264174,1712917846596,-587.104644,0.0004377,2]
[322264175,1712917846605,-150.0,0.00043778,2]
[322264176,1712917846615,-150.0,0.00043779,2]
[322264177,1712917846625,-150.0,0.00043781,30]
[322264178,1712917846635,-150.0,0.00043781,30]
[322264179,1712917846645,-150.0,0.00043781,30]
[322264180,1712917846655,-151.04816192,0.00043781,30]
[322264181,1712917846665,-150.0,0.00043781,30]
[322264182,1712917846674,-150.0,0.00043781,30]
[322264183,1712917846684,-3000.0,0.000438,2]
[322264184,1712917846693,-5000.0,0.000438,2]
[322264185,1712917846704,-150.0,0.00043805,2]
[322264186,1712917846714,-150.0,0.00043807,2]
[322264187,1712917846724,-150.0,0.00043831,2]
[322264188,1712917846734,-719.0,0.00043835,7]
[322264189,1712917846745,-150.0,0.00043835,2]
[322264190,1712917846754,-1000.0,0.00043835,2]
[322264191,1712917846763,-150.0,0.00043835,30]
[322264192,1712917846774,-10636.17,0.00043836,2]
[322264193,1712917846783,-4004.58,0.00043836,2]
[322264194,1712917846793,-150.0,0.00043843,2]
[322264195,1712917846803,-150.0,0.00043865,2]
[322264196,1712917846813,-150.0,0.00043868,2]
[322264197,1712917846822,-996.62,0.0004387,2]
[322264198,1712917846832,-150.0,0.00043881,2]
[322264199,1712917846842,-150.0,0.0004389,30]
[322264200,1712917846852,-150.0,0.00043893,2]
[322264201,1712917846861,-150.0,0.00043894,2]
[322264202,1712917846871,-150.0,0.00043895,2]
[322264203,1712917846882,-150.0,0.000439,72]
[322264204,1712917846892,-394.0,0.000439,20]
[322264205,1712917846901,-416.0,0.000439,20]
[322264206,1712917846910,-150.0,0.000439,2]
[322264207,1712917846920,-150.0,0.000439,20]
[322264208,1712917846930,-150.0,0.000439,7]
[322264209,1712917846940,-1500.0,0.00043912,2]
[322264210,1712917846950,-150.0,0.00043915,30]
[322264211,1712917846959,-150.0,0.0004393,2]
[322264212,1712917846968,-150.0,0.0004394,2]
[322264213,1712917846979,-150.0,0.00043945,30]
[322264214,1712917846988,-150.0,0.00043946,2]
[322264215,1712917846997,-150.0,0.00043947,2]
[322264216,1712917847006,-150.0,0.00043948,2]
[322264217,1712917847016,-1955.6440237,0.00043955,2]
[322264218,1712917847027,-150.0,0.00043956,2]
[322264219,1712917847039,-1298.7558,0.00043956,21]
[322264220,1712917847050,-150.0,0.0004396,30]
[322264221,1712917847062,-150.0,0.00043967,2]
[322264222,1712917847072,-150.0,0.00043972,2]
[322264223,1712917847083,-300.0,0.00043977,2]
[322264224,1712917847092,-150.0,0.00043982,2]
[322264225,1712917847104,-150.0,0.00043987,2]
[322264226,1712917847115,-6446.5839471,0.00043988,2]
[322264227,1712917847128,-7142.7640379,0.00043988,2]
[322264228,1712917847140,-13289.2932878,0.00043988,2]
[322264229,1712917847150,-197393.6147483,0.0004399,15]
[322264230,1712917847160,-2000.0,0.0004399,7]
[322264231,1712917847171,-200.0,0.0004399,7]
[322264232,1712917847182,-528.40296809,0.0004399,30]
[322264233,1712917847191,-200.0,0.0004399,7]
[322264234,1712917847201,-150.0,0.00043999,60]
[322264235,1712917847211,-150.0,0.00043999,30]
[322264236,1712917847221,-100000.0,0.00044,44]
[322264237,1712917847231,-16012.22588035,0.00044,2]
[322264238,1712917847246,-600.0,0.00044,45]
[322264239,1712917847256,-662.34692964,0.00044,100]
[322264240,1712917847271,-150.0,0.00044,120]
[322264241,1712917847282,-3200.0,0.00044,4]
[322264242,1712917847292,-242.69,0.00044,4]
[322264243,1712917847301,-242.69,0.00044,4]
[322264244,1712917847311,-242.69,0.00044,4]
[322264245,1712917847322,-242.69,0.00044,4]
[322264246,1712917847331,-242.69,0.00044,4]
[322264247,1712917847340,-242.69,0.00044,4]
[322264248,1712917847351,-242.69,0.00044,4]
[322264249,1712917847360,-242.69,0.00044,4]
[322264250,1712917847369,-242.69,0.00044,4]
[322264251,1712917847378,-242.69,0.00044,4]
[322264252,1712917847387,-242.69,0.00044,4]
[322264253,1712917847396,-242.69,0.00044,4]
[322264254,1712917847405,-242.69,0.00044,4]
[322264255,1712917847414,-242.69,0.00044,4]
[322264256,1712917847422,-242.69,0.00044,4]
[322264257,1712917847431,-242.69,0.00044,4]
[322264258,1712917847440,-242.69,0.00044,4]
[322264259,1712917847449,-242.69,0.00044,4]
[322264260,1712917847458,-242.69,0.00044,4]
[322264261,1712917847467,-242.69,0.00044,4]
[322264262,1712917847476,-242.69,0.00044,4]
[322264263,1712917847485,-242.69,0.00044,4]
[322264264,1712917847494,-242.69,0.00044,4]
[322264265,1712917847502,-242.69,0.00044,4]
[322264266,1712917847511,-204.256206,0.00044,44]
[322264267,1712917847520,-895.1575,0.00044,2]
[322264268,1712917847529,-895.1575,0.00044,2]
[322264269,1712917847539,-2043.8025,0.00044,2]
[322264270,1712917847548,-2043.8025,0.00044,2]
[322264271,1712917847559,-10190.65749499,0.00044019,2]
[322264272,1712917847585,-541.73475,0.00044019,2]
[322264273,1712917847598,-703.74500001,0.00044019,2]
[322264274,1712917847609,-1499.99064055,0.00044019,2]
[322264275,1712917847621,-1344.87136576,0.00044019,2]
[322264276,1712917847633,-59647.14549729,0.00044019,2]
[322264277,1712917847642,-150.0,0.00044049,30]
[322264278,1712917847651,-2081.16472362,0.00044052,2]
[322264279,1712917847660,-150.0,0.00044054,30]
[322264280,1712917847670,-3771.36,0.000441,4]
[322264281,1712917847679,-3771.36,0.000441,4]
[322264282,1712917847688,-3771.36,0.000441,4]
[322264283,1712917847698,-3771.36,0.000441,4]
[322264284,1712917847708,-3771.36,0.000441,4]
[322264285,1712917847719,-3771.36,0.000441,4]
[322264286,1712917847730,-3771.36,0.000441,4]
[322264287,1712917847741,-3771.36,0.000441,4]
[322264288,1712917847753,-3771.36,0.000441,4]
[322264289,1712917847762,-3771.36,0.000441,4]
[322264290,1712917847772,-3771.36,0.000441,4]
[322264291,1712917847783,-3771.36,0.000441,4]
[322264292,1712917847792,-3771.36,0.000441,4]
[322264293,1712917847804,-3771.36,0.000441,4]
[322264294,1712917847814,-3771.36,0.000441,4]
[322264295,1712917847824,-3771.36,0.000441,4]
[322264296,1712917847833,-3771.36,0.000441,4]
[322264297,1712917847843,-3771.36,0.000441,4]
[322264298,1712917847855,-3771.36,0.000441,4]
[322264299,1712917847865,-3771.36,0.000441,4]
[322264300,1712917847874,-660.90698694,0.00044103,2]
[322264301,1712917847885,-1230.7432046,0.00044103,2]
[322264302,1712917847895,-164.65793639,0.00044103,2]
[322264303,1712917847906,-150.0,0.00044108,30]
[322264304,1712917847915,-150.0,0.00044124,2]
[322264305,1712917847925,-150.0,0.00044139,30]
[322264306,1712917848146,-150.0,0.00044163,30]
[322264307,1712917848156,-150.0,0.00044183,30]
[322264308,1712917848165,-150.0,0.00044217,30]
[322264309,1712917848174,-151.68,0.00044257,2]
[322264310,1712917848184,-150.0,0.00044272,30]
[322264311,1712917848194,-3285.59603357,0.00044316,2]
[322264312,1712917848204,-150.0,0.00044317,30]
[322264313,1712917848213,-150.0,0.00044317,30]
[322264314,1712917848223,-150.0,0.00044326,30]
[322264315,1712917848233,-1222.21128161,0.0004433,2]
[322264316,1712917848242,-156.03752897,0.00044338,23]
[322264317,1712917848251,-1272.86442097,0.00044356,11]
[322264318,1712917848260,-150.0,0.00044381,30]
[322264319,1712917848269,-150.0,0.00044425,30]
[322264320,1712917848279,-2000.0,0.0004443,7]
[322264321,1712917848288,-200.0,0.0004443,7]
[322264322,1712917848298,-150.0,0.00044436,30]
[322264323,1712917848308,-150.0,0.00044451,30]
[322264324,1712917848318,-1222.21128162,0.00044469,2]
[322264325,1712917848327,-301.66,0.0004447,2]
[322264326,1712917848336,-150.0,0.0004449,30]
[322264327,1712917848345,-150.0,0.00044496,30]
[322264328,1712917848355,-6925.31616957,0.00044539,2]
[322264329,1712917848364,-150.0,0.00044545,30]
[322264330,1712917848374,-996.62,0.0004457,2]
[322264331,1712917848384,-150.0,0.00044586,30]
[322264332,1712917848395,-150.0,0.00044599,30]
[322264333,1712917848406,-150.0,0.00044654,30]
[322264334,1712917848416,-150.0,0.00044675,30]
[322264335,1712917848428,-414.16,0.00044701,2]
[322264336,1712917848439,-302.1,0.00044701,2]
[322264337,1712917848450,-150.0,0.00044708,30]
[322264338,1712917848460,-150.0,0.0004472,30]
[322264339,1712917848469,-150.0,0.00044763,30]
[322264340,1712917848478,-29000.0,0.000448,17]
[322264341,1712917848487,-150.0,0.00044818,30]
[322264342,1712917848496,-150.0,0.00044854,30]
[322264343,1712917848506,-150.0,0.00044854,30]
[322264344,1712917848515,-150.0,0.00044872,30]
[322264345,1712917848523,-200.0,0.00044874,7]
[322264346,1712917848532,-15681.33060465,0.000449,20]
[322264347,1712917848542,-150.0,0.000449,83]
[322264348,1712917848551,-150.0,0.00044927,30]
[322264349,1712917848561,-150.0,0.00044981,30]
[322264350,1712917848571,-5000.0,0.00044986,4]
[322264351,1712917848579,-150.0,0.00044987,60]
[322264352,1712917848589,-150.0,0.00044988,30]
[322264353,1712917848598,-150.0,0.00044989,2]
[322264354,1712917848608,-150.0,0.00044999,60]
[322264355,1712917848617,-100000.0,0.00045,45]
[322264356,1712917848626,-168.73719176,0.00045,4]
[322264357,1712917848636,-70895.69366014,0.00045,2]
[322264358,1712917848645,-1045.863235,0.00045,120]
[322264359,1712917848654,-150.0,0.00045,85]
[322264360,1712917848664,-600.0,0.00045,46]
[322264361,1712917848673,-541.41903813,0.00045,120]
[322264362,1712917848682,-196.93671649,0.00045,30]
[322264363,1712917848691,-650.08855138,0.00045,30]
[322264364,1712917848700,-500.0,0.00045,2]
[322264365,1712917848709,-415.37980827,0.00045,45]
[322264366,1712917848719,-632.0,0.00045,30]
[322264367,1712917848728,-30010.21919478,0.00045,10]
[322264368,1712917848737,-10000.0,0.00045,120]
[322264369,1712917848747,-1000.0,0.00045,120]
[322264370,1712917848756,-860.46201768,0.00045,120]
[322264371,1712917848765,-150.0,0.00045,120]
[322264372,1712917848774,-228979.67112183,0.00045,120]
[322264373,1712917848784,-452.999995,0.00045,120]
[322264374,1712917848794,-150.0,0.00045033,30]
[322264375,1712917848804,-150.0,0.00045036,30]
[322264376,1712917848813,-150.0,0.00045068,30]
[322264377,1712917848822,-150.0,0.0004509,30]
[322264378,1712917848832,-150.0,0.00045122,30]
[322264379,1712917848841,-150.0,0.00045145,30]
[322264380,1712917848850,-150.0,0.00045199,30]
[322264381,1712917848859,-373.42308497,0.00045205,40]
[322264382,1712917848868,-862.0,0.00045205,7]
[322264383,1712917848879,-1000.0,0.00045205,2]
[322264384,1712917848889,-433.65,0.00045205,2]
[322264385,1712917848898,-150.0,0.00045212,30]
[322264386,1712917848908,-722.21837963,0.00045219,20]
[322264387,1712917848919,-150.0,0.00045254,30]
[322264388,1712917848929,-150.0,0.00045256,30]
[322264389,1712917848938,-150.0,0.00045309,30]
[322264390,1712917848948,-200.0,0.00045323,7]
[322264391,1712917848957,-150.0,0.00045363,30]
[322264392,1712917848967,-996.62,0.0004538,2]
[322264393,1712917848976,-150.0,0.0004539,30]
[322264394,1712917848985,-150.0,0.0004539,30]
[322264395,1712917848994,-150.0,0.00045418,30]
[322264396,1712917849003,-150.0,0.00045472,30]
[322264397,1712917849012,-150.0,0.000455,8]
[322264398,1712917849022,-150.0,0.00045525,30]
[322264399,1712917849032,-150.0,0.00045527,30]
[322264400,1712917849041,-586.32,0.00045533,2]
[322264401,1712917849052,-150.0,0.00045569,30]
[322264402,1712917849063,-150.0,0.00045581,30]
[322264403,1712917849073,-150.0,0.00045636,30]
[322264404,1712917849083,-150.0,0.00045659,30]
[322264405,1712917849095,-150.0,0.00045691,30]
[322264406,1712917849104,-150.0,0.00045712,30]
[322264407,1712917849113,-150.0,0.00045745,30]
[322264408,1712917849123,-150.0,0.00045748,30]
[322264409,1712917849134,-30000.0,0.0004575,120]
[322264410,1712917849144,-200.0,0.00045776,7]
[322264411,1712917849154,-150.0,0.00045793,30]
[322264412,1712917849164,-150.0,0.000458,30]
[322264413,1712917849175,-150.0,0.00045854,30]
[322264414,1712917849185,-150.0,0.00045854,2]
[322264415,1712917849194,-200.0,0.000459,95]
[322264416,1712917849205,-150.0,0.00045909,30]
[322264417,1712917849214,-151.0,0.00045922,10]
[322264418,1712917849224,-150.0,0.00045927,30]
[322264419,1712917849233,-150.0,0.00045927,30]
[322264420,1712917849244,-150.0,0.00045963,30]
[322264421,1712917849254,-50276.65328696,0.0004599,30]
[322264422,1712917849264,-150.0,0.00045999,60]
[322264423,1712917849274,-150.22991719,0.00045999,60]
[322264424,1712917849284,-100000.0,0.00046,46]
[322264425,1712917849294,-305.3621376,0.00046,15]
[322264426,1712917849305,-10506.64,0.00046,40]
[322264427,1712917849315,-750.0,0.00046,120]
[322264428,1712917849324,-600.0,0.00046,47]
[322264429,1712917849333,-150.0,0.00046,96]
[322264430,1712917849342,-2100.0,0.00046,30]
[322264431,1712917849352,-500.0,0.00046,20]
[322264432,1712917849362,-11044.1001369,0.00046,30]
[322264433,1712917849371,-503.61,0.00046,5]
[322264434,1712917849380,-254.21509596,0.00046,30]
[322264435,1712917849390,-150.0,0.00046,120]
[322264436,1712917849400,-150.0,0.00046,8]
[322264437,1712917849410,-150.0,0.00046018,30]
[322264438,1712917849420,-150.0,0.00046061,30]
[322264439,1712917849430,-150.0,0.00046072,30]
[322264440,1712917849440,-996.62,0.0004608,2]
[322264441,1712917849450,-187048.83650459,0.000461,120]
[322264442,1712917849459,-150.0,0.00046106,30]
[322264443,1712917849468,-150.0,0.00046127,30]
[322264444,1712917849478,-150.0,0.00046182,30]
[322264445,1712917849487,-150.0,0.00046195,30]
[322264446,1712917849497,-301.66,0.00046215,2]
[322264447,1712917849507,-150.0,0.00046236,30]
[322264448,1712917849517,-739.43,0.00046247,15]
[322264449,1712917849526,-150.0,0.00046285,30]
[322264450,1712917849535,-150.0,0.00046291,30]
[322264451,1712917849544,-150.0,0.00046329,30]
[322264452,1712917849553,-150.0,0.00046345,30]
[322264453,1712917849562,-150.0,0.00046356,30]
[322264454,1712917849571,-150.0,0.000464,30]
[322264455,1712917849580,-150.0,0.00046454,30]
[322264456,1712917849589,-150.0,0.00046463,30]
[322264457,1712917849599,-150.0,0.00046463,30]
[322264458,1712917849609,-723.0,0.00046496,30]
[322264459,1712917849618,-336.0,0.00046496,30]
[322264460,1712917849628,-482.0,0.00046496,30]
[322264461,1712917849638,-394.0,0.000465,23]
[322264462,1712917849647,-394.0,0.000465,23]
[322264463,1712917849657,-510.0,0.000465,34]
[322264464,1712917849666,-150.0,0.000465,8]
[322264465,1712917849675,-150.0,0.00046509,30]
[322264466,1712917849685,-150.0,0.00046564,30]
[322264467,1712917849694,-862.0,0.00046575,30]
[322264468,1712917849703,-1000.0,0.00046575,2]
[322264469,1712917849713,-1000.0,0.00046575,30]
[322264470,1712917849722,-150.0,0.00046598,30]
[322264471,1712917849731,-3000.0,0.000466,2]
[322264472,1712917849741,-5000.0,0.000466,2]
[322264473,1712917849751,-151.39880852,0.0004661,20]
[322264474,1712917849760,-150.0,0.00046618,30]
[322264475,1712917849769,-150.0,0.00046642,30]
[322264476,1712917849778,-150.0,0.00046673,30]
[322264477,1712917849788,-154.81623965,0.000467,120]
[322264478,1712917849797,-2815.0,0.000467,115]
[322264479,1712917849812,-416.89960639,0.00046704,35]
[322264480,1712917849859,-150.0,0.0004672,2]
[322264481,1712917849868,-150.0,0.00046727,30]
[322264482,1712917849877,-150.0,0.00046732,30]
[322264483,1712917849886,-152.0,0.0004678,5]
[322264484,1712917849895,-154.72605851,0.0004678,5]
[322264485,1712917849905,-152.0,0.0004678,5]
[322264486,1712917849914,-150.0,0.00046782,30]
[322264487,1712917849923,-326.76474667,0.000468,60]
[322264488,1712917849933,-11024.200836,0.000468,30]
[322264489,1712917849942,-150.0,0.00046821,30]
[322264490,1712917849951,-150.0,0.00046836,30]
[322264491,1712917849960,-150.0,0.00046866,30]
[322264492,1712917849969,-996.62,0.0004689,2]
[322264493,1712917849979,-150.0,0.00046891,30]
[322264494,1712917849988,-150.0,0.00046945,30]
[322264495,1712917849998,-2081.16472362,0.00046959,2]
[322264496,1712917850007,-723.0,0.00046975,30]
[322264497,1712917850017,-336.0,0.00046975,30]
[322264498,1712917850026,-482.0,0.00046975,30]
[322264499,1712917850036,-2200.41585207,0.00046979,47]
[322264500,1712917850049,-15000.0,0.0004699,30]
[322264501,1712917850059,-1000.0,0.00046999,120]
[322264502,1712917850068,-150.0,0.00046999,60]
[322264503,1712917850078,-100000.0,0.00047,47]
[322264504,1712917850088,-16773.37494347,0.00047,30]
[322264505,1712917850098,-600.0,0.00047,48]
[322264506,1712917850107,-7411.89764908,0.00047,120]
[322264507,1712917850117,-272177.4822212,0.00047,30]
[322264508,1712917850128,-22212.0,0.00047,120]
[322264509,1712917850137,-650.0,0.00047,120]
[322264510,1712917850147,-15895.56449568,0.00047,30]
[322264511,1712917850156,-1981.36111083,0.00047,120]
[322264512,1712917850166,-6000.0,0.00047,120]
[322264513,1712917850176,-5000.0,0.00047,10]
[322264514,1712917850186,-210.17,0.00047,30]
[322264515,1712917850196,-212.92,0.00047,120]
[322264516,1712917850206,-150.0,0.00047,120]
[322264517,1712917850217,-213.0,0.00047,30]
[322264518,1712917850227,-218.0,0.00047,30]
[322264519,1712917850237,-200.0,0.00047,108]
[322264520,1712917850247,-153.745939,0.00047,14]
[322264521,1712917850257,-150.0,0.00047,9]
[322264522,1712917850267,-166.34950462,0.00047,30]
[322264523,1712917850277,-170.82109175,0.00047,30]
[322264524,1712917850287,-244.18881192,0.00047,30]
[322264525,1712917850297,-275.64732119,0.00047,30]
[322264526,1712917850308,-157.18961313,0.00047,30]
[322264527,1712917850317,-722.21837963,0.00047139,22]
[322264528,1712917850327,-150.0,0.00047165,7]
[322264529,1712917850337,-723.0,0.00047455,30]
[322264530,1712917850348,-336.0,0.00047455,30]
[322264531,1712917850358,-482.0,0.00047455,30]
[322264532,1712917850368,-482.95,0.000475,120]
[322264533,1712917850378,-150.0,0.000475,120]
[322264534,1712917850388,-150.0,0.000475,9]
[322264535,1712917850398,-150.0,0.00047585,2]
[322264536,1712917850408,-996.62,0.0004759,2]
[322264537,1712917850419,-20000.0,0.000476,120]
[322264538,1712917850430,-586.32,0.00047797,2]
[322264539,1712917850441,-179.02628781,0.00047798,23]